fUST/lending_fUST_20250612
["ID","MTS","AMOUNT","RATE_DAILY","PERIOD"]
[365498989,1749709178416,166.18,0.00019062,2]
[365498990,1749709178827,221.57,0.00019891,2]
[365498991,1749709237483,506.74601566,0.00019869,2]
[365498992,1749709255640,151.37,0.00019194,2]
[365498993,1749709338757,5000.0,0.0002,2]
[365498995,1749709354103,1780.47650191,0.0002,2]
[365498996,1749709354127,3219.52349809,0.0002,2]
[365498997,1749709371206,5000.0,0.0002,2]
[365498998,1749709386503,5000.0,0.0002,2]
[365499000,1749709402422,4554.09257334,0.0002,2]
[365499001,1749709402447,445.90742666,0.0002,2]
[365499002,1749709418187,5000.0,0.0002,2]
[365499003,1749709434036,5000.0,0.0002,2]
[365499004,1749709450611,5000.0,0.0002,2]
[365499005,1749709466957,2327.70864477,0.0002,2]
[365499006,1749709466983,2672.29135523,0.0002,2]
[365499007,1749709482777,5000.0,0.0002,2]
[365499008,1749709499291,5000.0,0.0002,2]
[365499009,1749709514714,5000.0,0.0002,2]
[365499010,1749709521936,101.3247162,0.00019929,2]
[365499011,1749709521962,148.6752838,0.00019929,2]
[365499012,1749709530220,5000.0,0.0002,2]
[365499013,1749709546092,5000.0,0.0002,2]
[365499014,1749709562403,5000.0,0.0002,2]
[365499016,1749709579273,2624.94078763,0.0002,2]
[365499017,1749709579300,2375.05921237,0.0002,2]
[365499018,1749709595053,5000.0,0.0002,2]
[365499021,1749709610964,5000.0,0.0002,2]
[365499022,1749709615239,194.12,0.00019954,2]
[365499023,1749709626873,5000.0,0.0002,2]
[365499026,1749709642169,204.43685906,0.0002,2]
[365499027,1749709642195,4795.56314094,0.0002,2]
[365499028,1749709658491,5000.0,0.0002,2]
[365499029,1749709671084,7978.05293049,0.00018,2]
[365499030,1749709671111,998.15139273,0.00018,2]
[365499031,1749709674611,5000.0,0.0002,2]
[365499032,1749709689983,184.24,0.00019933,2]
[365499033,1749709690186,5000.0,0.0002,2]
[365499035,1749709705424,5000.0,0.0002,2]
[365499036,1749709717544,1591.2246787,0.00018,2]
[365499037,1749709717569,2473.54961458,0.00018,2]
[365499039,1749709720692,5000.0,0.0002,2]
[365499040,1749709722494,10300.06645685,0.00015,2]
[365499041,1749709722519,515.76530159,0.00015,2]
[365499042,1749709724619,14867.05174422,0.0001,2]
[365499043,1749709736469,2390.79902562,0.0002,2]
[365499044,1749709736497,2609.20097438,0.0002,2]
[365499066,1749709751805,5000.0,0.0002,2]
[365499067,1749709766898,174.86,0.00019972,2]
[365499068,1749709766974,5000.0,0.0002,2]
[365499072,1749709782721,4989.55509705,0.0002,2]
[365499073,1749709782748,10.44490295,0.0002,2]
[365499074,1749709798020,5000.0,0.0002,2]
[365499078,1749709813321,5000.0,0.0002,2]
[365499079,1749709828626,5000.0,0.0002,2]
[365499160,1749709832247,-613.185897,0.00020373,2]
[365499162,1749709832257,-304.0476094,0.00020377,2]
[365499164,1749709832267,-211.36095011,0.00020704,2]
[365499166,1749709832276,-218.58,0.00020804,2]
[365499168,1749709832286,-300.0,0.00021006,2]
[365499170,1749709832295,-300.0,0.00021006,2]
[365499172,1749709832305,-24900.0,0.00021007,2]
[365499175,1749709832315,-460.0,0.00021095,2]
[365499177,1749709832324,-500.897205,0.00021095,4]
[365499179,1749709832335,-344.7139459,0.00021165,2]
[365499181,1749709832344,-460.0,0.00021369,2]
[365499183,1749709832354,-174.752,0.00021369,2]
[365499185,1749709832364,-835.15920933,0.00021373,2]
[365499187,1749709832374,-229.7508257,0.00021373,2]
[365499189,1749709832383,-160.0,0.00021373,2]
[365499191,1749709832392,-262.29,0.00021636,2]
[365499193,1749709832402,-460.0,0.00021643,2]
[365499195,1749709832411,-1312.7736647,0.00021719,2]
[365499197,1749709832420,-159.4254915,0.00022,2]
[365499199,1749709832430,-170.0,0.00022,2]
[365499201,1749709832440,-221.43926187,0.00022058,2]
[365499203,1749709832449,-525.58756287,0.0002219,2]
[365499205,1749709832459,-424.26423502,0.00022205,2]
[365499207,1749709832469,-160.0,0.00022205,2]
[365499209,1749709832478,-844.79171733,0.00022205,2]
[365499211,1749709832487,-1504.41352636,0.00022217,2]
[365499214,1749709832507,-3156.64373317,0.00022217,2]
[365499656,1749709988368,875.13464259,0.00018907,2]
[365499657,1749709992677,171.71,0.00019815,2]
[365499658,1749710071342,165.16,0.00019706,2]
[365499660,1749710103145,262.1880352,0.000189,2]
[365499662,1749710141994,273.38104382,0.00019856,2]
[365499663,1749710149683,158.85,0.00019803,2]
[365499664,1749710227126,152.78,0.00019198,2]
[365499665,1749710275910,165.749791,0.00013699,2]
[365499667,1749710289942,538.21765587,0.00018907,2]
[365499668,1749710290179,45.20543919,0.00018907,2]
[365499670,1749710410313,5000.0,0.0002,2]
[365499671,1749710426370,211.36095012,0.00019978,2]
[365499672,1749710426718,5000.0,0.0002,2]
[365499673,1749710443056,5000.0,0.0002,2]
[365499674,1749710448510,195.94,0.00018968,2]
[365499675,1749710448931,244.92,0.00019758,2]
[365499676,1749710458473,2076.18968212,0.0002,2]
[365499677,1749710458499,2923.81031788,0.0002,2]
[365499678,1749710474402,5000.0,0.0002,2]
[365499679,1749710489673,5000.0,0.0002,2]
[365499680,1749710490483,3255.9189592,0.00019996,2]
[365499681,1749710506260,1593.88679435,0.0002,2]
[365499682,1749710506286,3406.11320565,0.0002,2]
[365499683,1749710517100,10000.0,0.00019876,2]
[365499684,1749710522152,4367.50286578,0.0002,2]
[365499685,1749710522178,632.49713422,0.0002,2]
[365499686,1749710523250,173.49,0.00018933,2]
[365499687,1749710523664,216.86,0.00019722,2]
[365499688,1749710538232,5000.0,0.0002,2]
[365499689,1749710554059,5000.0,0.0002,2]
[365499692,1749710591314,388.94873004,0.00018907,2]
[365499693,1749710602560,153.62,0.00018925,2]
[365499694,1749710603022,192.02,0.00019714,2]
[365499700,1749710678416,170.03,0.000197,2]
[365499701,1749710682898,345.24,0.0002,10]
[365499702,1749710704620,1122.99,0.00024658,120]
[365499703,1749710707503,227.527292,0.0001987,2]
[365499705,1749710722212,1122.98,0.00024658,120]
[365499706,1749710753161,159.21,0.00019979,2]
[365499707,1749710773000,820.0,0.00024658,120]
[365499708,1749710787114,820.0,0.00024658,120]
[365499709,1749710826243,170.8,0.00019968,2]
[365499714,1749710872204,424.25997,0.00019921,2]
[365499715,1749710892611,259.29915336,0.000189,2]
[365499716,1749710900235,159.93,0.00019986,2]
[365499717,1749710910138,296.81108299,0.0002,2]
[365499718,1749711001815,166.07294469,0.00019966,2]
[365499728,1749711031920,-1832.5149981,0.00020066,2]
[365499730,1749711031930,-164.02862629,0.00020105,2]
[365499732,1749711031940,-153.50478512,0.000205,2]
[365499734,1749711031950,-179.71,0.00020599,2]
[365499736,1749711031960,-166.0,0.00020692,2]
[365499738,1749711031969,-300.0,0.00020726,2]
[365499740,1749711031979,-300.0,0.00020726,2]
[365499742,1749711031988,-752.0,0.00020726,2]
[365499744,1749711031998,-1309.43386982,0.00020727,2]
[365499749,1749711032025,-5399.0,0.00020727,2]
[365499767,1749711032224,-815.3393277,0.00020727,2]
[365499862,1749711040332,-2837.2664498,0.00020727,2]
[365499864,1749711040345,-14538.96035268,0.00020727,2]
[365499866,1749711040355,-472.21482664,0.000209,4]
[365499868,1749711040366,-163.08632578,0.00020938,2]
[365499870,1749711040376,-1000.0,0.00021,21]
[365499872,1749711040386,-472.21482649,0.00021038,4]
[365499875,1749711040397,-522.37,0.00021095,2]
[365499876,1749711040408,-444.36779415,0.00021095,4]
[365499878,1749711040419,-465.74221194,0.00021095,4]
[365499881,1749711040428,-460.0,0.00021095,4]
[365499883,1749711040438,-460.0,0.00021095,4]
[365499885,1749711040448,-294.14221843,0.00021095,4]
[365499887,1749711040458,-471.07628837,0.00021095,4]
[365499889,1749711040467,-460.0,0.00021095,4]
[365499891,1749711040477,-511.00428479,0.00021095,4]
[365499893,1749711040487,-419.20697765,0.00021095,4]
[365499894,1749711040496,-208.24737572,0.00021095,4]
[365499896,1749711040506,-462.40441852,0.00021095,4]
[365499898,1749711040515,-460.0,0.00021095,4]
[365499899,1749711040525,-472.21482649,0.00021176,4]
[365499900,1749711040534,-472.21482649,0.00021314,5]
[365499901,1749711040544,-160.0,0.00021335,2]
[365499902,1749711040554,-166.07294468,0.00021352,2]
[365499904,1749711040564,-835.15920933,0.0002138,2]
[365499906,1749711040574,-229.7508257,0.0002138,2]
[365499908,1749711040583,-844.79171733,0.00021381,2]
[365499910,1749711040594,-160.0,0.00021381,2]
[365499912,1749711040603,-424.26423502,0.00021381,2]
[365499914,1749711040613,-209.66,0.00021392,2]
[365499916,1749711040623,-472.21482649,0.00021452,5]
[365499918,1749711040632,-472.21482649,0.0002159,5]
[365499920,1749711040642,-160.0,0.00021608,2]
[365499922,1749711040652,-455.63507303,0.00021609,2]
[365499925,1749711040662,-500.0,0.00021633,2]
[365499927,1749711040672,-394.71777998,0.00021633,2]
[365499929,1749711040687,-500.0,0.00021633,2]
[365499931,1749711040697,-500.0,0.00021633,2]
[365499933,1749711040707,-500.0,0.00021633,2]
[365499935,1749711040717,-500.0,0.00021633,2]
[365499938,1749711040727,-500.0,0.00021633,2]
[365499940,1749711040737,-500.0,0.00021633,2]
[365499942,1749711040746,-500.0,0.00021633,2]
[365499944,1749711040756,-379.15052262,0.00021633,2]
[365499946,1749711040765,-500.0,0.00021633,2]
[365499948,1749711040775,-500.0,0.00021633,2]
[365499950,1749711040785,-500.0,0.00021633,2]
[365499952,1749711040796,-310.74811945,0.00021633,2]
[365499954,1749711040805,-500.0,0.00021633,2]
[365499956,1749711040815,-500.0,0.00021633,2]
[365499958,1749711040824,-500.0,0.00021633,2]
[365499960,1749711040834,-500.0,0.00021633,2]
[365499962,1749711040844,-500.0,0.00021633,2]
[365499964,1749711040853,-500.0,0.00021633,2]
[365499966,1749711040862,-500.0,0.00021633,2]
[365499969,1749711040872,-500.0,0.00021633,2]
[365499971,1749711040882,-500.0,0.00021633,2]
[365499973,1749711040892,-500.0,0.00021633,2]
[365499975,1749711040901,-500.0,0.00021633,2]
[365499977,1749711040911,-442.79340753,0.00021633,2]
[365499979,1749711040924,-500.0,0.00021633,2]
[365499981,1749711040933,-500.0,0.00021633,2]
[365499983,1749711040943,-361.57572006,0.00021633,2]
[365499985,1749711040953,-361.23971545,0.00021633,2]
[365499987,1749711040962,-500.0,0.00021633,2]
[365499989,1749711040972,-423.30143433,0.00021633,2]
[365499991,1749711040982,-500.0,0.00021633,2]
[365499993,1749711040993,-228.55431896,0.00021633,2]
[365499995,1749711041002,-500.0,0.00021633,2]
[365499997,1749711041012,-500.0,0.00021633,2]
[365499999,1749711041022,-500.0,0.00021633,2]
[365500001,1749711041031,-500.0,0.00021633,2]
[365500003,1749711041042,-500.0,0.00021633,2]
[365500005,1749711041052,-500.0,0.00021633,2]
[365500007,1749711041062,-500.0,0.00021633,2]
[365500009,1749711041072,-500.0,0.00021633,2]
[365500011,1749711041082,-500.0,0.00021633,2]
[365500014,1749711041092,-500.0,0.00021633,2]
[365500016,1749711041103,-500.0,0.00021633,2]
[365500018,1749711041112,-500.0,0.00021633,2]
[365500020,1749711041122,-500.0,0.00021633,2]
[365500022,1749711041131,-500.0,0.00021633,2]
[365500024,1749711041141,-507.74056746,0.00021633,2]
[365500026,1749711041151,-234.23116829,0.00021633,2]
[365500028,1749711041162,-500.0,0.00021633,2]
[365500030,1749711041173,-500.0,0.00021633,2]
[365500032,1749711041183,-500.0,0.00021633,2]
[365500034,1749711041193,-500.0,0.00021633,2]
[365500037,1749711041203,-500.0,0.00021633,2]
[365500039,1749711041214,-500.0,0.00021633,2]
[365500041,1749711041223,-500.0,0.00021633,2]
[365500043,1749711041233,-500.0,0.00021633,2]
[365500045,1749711041242,-460.67127557,0.00021633,2]
[365500047,1749711041251,-500.0,0.00021633,2]
[365500049,1749711041261,-500.0,0.00021633,2]
[365500051,1749711041271,-500.0,0.00021633,2]
[365500053,1749711041280,-500.0,0.00021633,2]
[365500055,1749711041290,-500.0,0.00021633,2]
[365500057,1749711041300,-500.0,0.00021633,2]
[365500059,1749711041312,-500.0,0.00021633,2]
[365500061,1749711041322,-500.0,0.00021633,2]
[365500063,1749711041335,-500.0,0.00021633,2]
[365500065,1749711041344,-500.0,0.00021633,2]
[365500067,1749711041354,-500.0,0.00021633,2]
[365500069,1749711041364,-594.92834926,0.00021633,2]
[365500072,1749711041375,-36.26301681,0.00021633,2]
[365500137,1749711043133,-463.73698319,0.00021633,2]
[365500138,1749711043143,-494.52685639,0.00021633,2]
[365500139,1749711043155,-5.47314361,0.00021633,2]
[365500140,1749711043166,-500.0,0.00021633,2]
[365500141,1749711043175,-500.0,0.00021633,2]
[365500142,1749711043185,-500.0,0.00021633,2]
[365500143,1749711043194,-252.29601285,0.00021633,2]
[365500144,1749711043204,-500.0,0.00021633,2]
[365500145,1749711043213,-500.0,0.00021633,2]
[365500146,1749711043223,-500.0,0.00021633,2]
[365500147,1749711043232,-11862.37599647,0.00021634,2]
[365500148,1749711043243,-1504.36381948,0.00021656,2]
[365500149,1749711043252,-6020.1707055,0.00021694,2]
[365500150,1749711043262,-472.21482649,0.00021728,5]
[365500151,1749711043271,-222.282512,0.00021756,2]
[365500152,1749711043282,-500.0,0.00021764,2]
[365500153,1749711043291,-151.0,0.00021818,2]
[365500154,1749711043301,-151.0,0.00021818,2]
[365500155,1749711043311,-151.0,0.00021818,2]
[365500156,1749711043321,-151.0,0.00021818,2]
[365500157,1749711043333,-205.482642,0.00021818,2]
[365500158,1749711043343,-472.21482649,0.00021866,6]
[365500159,1749711043352,-397.69405856,0.00021873,2]
[365500160,1749711043362,-501.23081117,0.00021873,2]
[365500161,1749711043372,-500.0,0.00021878,2]
[365500162,1749711043382,-151.0,0.00021879,2]
[365500163,1749711043392,-151.0,0.00021879,2]
[365500165,1749711043402,-151.0,0.00021879,2]
[365500167,1749711043412,-151.0,0.00021879,2]
[365500168,1749711043422,-151.0,0.00021879,2]
[365500170,1749711043432,-151.0,0.00021879,2]
[365500172,1749711043441,-151.0,0.00021879,2]
[365500173,1749711043451,-151.0,0.00021879,2]
[365500174,1749711043470,-151.0,0.00021879,2]
[365500175,1749711043482,-174.503728,0.00021879,2]
[365500176,1749711043492,-500.0,0.00021918,2]
[365500177,1749711043502,-500.0,0.00021933,2]
[365500178,1749711043512,-1368.072709,0.0002194,2]
[365500179,1749711043522,-1368.072709,0.0002194,2]
[365500180,1749711043531,-1368.072709,0.0002194,2]
[365500181,1749711043541,-1368.072709,0.0002194,2]
[365500182,1749711043551,-1368.072709,0.0002194,2]
[365500184,1749711043561,-1368.072709,0.0002194,2]
[365500186,1749711043570,-1368.072709,0.0002194,2]
[365500188,1749711043580,-1368.072709,0.0002194,2]
[365500189,1749711043590,-1368.072709,0.0002194,2]
[365500190,1749711043600,-1368.072709,0.0002194,2]
[365500191,1749711043610,-1000.0,0.00022,22]
[365500192,1749711043620,-407.5091914,0.00022002,4]
[365500193,1749711043630,-472.21482649,0.00022003,6]
[365500194,1749711043640,-460.0,0.00022124,4]
[365500195,1749711043650,-460.0,0.00022124,4]
[365500196,1749711043660,-472.21482649,0.00022141,6]
[365500197,1749711043672,-1504.36381947,0.00022142,2]
[365500198,1749711043682,-239.61,0.00022184,2]
[365500199,1749711043692,-153.8908305,0.00022192,2]
[365500200,1749711043701,-181.96853689,0.000222,69]
[365500201,1749711043711,-207.4,0.00022236,2]
[365500202,1749711043721,-1688.0,0.00022236,2]
[365500203,1749711043730,-500.0,0.00022273,2]
[365500204,1749711043740,-1597.01871835,0.00022273,2]
[365500205,1749711043750,-151.0,0.00022273,7]
[365500206,1749711043759,-151.0,0.00022273,7]
[365500207,1749711043770,-151.0,0.00022273,7]
[365500208,1749711043780,-151.0,0.00022273,7]
[365500209,1749711043790,-151.0,0.00022273,7]
[365500210,1749711043799,-151.916327,0.00022273,7]
[365500211,1749711043809,-293.312232,0.00022273,7]
[365500212,1749711043818,-293.312232,0.00022273,7]
[365500213,1749711043828,-293.312232,0.00022273,7]
[365500214,1749711043838,-293.312232,0.00022273,7]
[365500215,1749711043848,-293.312232,0.00022273,7]
[365500216,1749711043858,-293.312232,0.00022273,7]
[365500217,1749711043867,-293.312232,0.00022273,7]
[365500218,1749711043877,-293.312232,0.00022273,7]
[365500219,1749711043886,-151.0,0.00022274,7]
[365500220,1749711043896,-151.0,0.00022274,7]
[365500221,1749711043905,-151.0,0.00022274,7]
[365500222,1749711043915,-279.284194,0.00022274,7]
[365500223,1749711043924,-151.0,0.00022274,7]
[365500224,1749711043935,-151.0,0.00022275,7]
[365500225,1749711043944,-151.0,0.00022275,7]
[365500226,1749711043954,-151.0,0.00022275,7]
[365500227,1749711043963,-151.0,0.00022275,7]
[365500228,1749711043974,-151.213556,0.00022275,7]
[365500229,1749711043983,-331.212048,0.00022275,7]
[365500230,1749711043993,-331.212048,0.00022275,7]
[365500231,1749711044003,-331.212048,0.00022275,7]
[365500232,1749711044012,-331.212048,0.00022275,7]
[365500233,1749711044022,-331.212048,0.00022275,7]
[365500234,1749711044032,-331.212048,0.00022275,7]
[365500235,1749711044042,-331.212048,0.00022275,7]
[365500236,1749711044052,-331.212048,0.00022275,7]
[365500237,1749711044062,-151.0,0.00022275,7]
[365500238,1749711044071,-151.0,0.00022276,7]
[365500239,1749711044082,-151.0,0.00022276,7]
[365500240,1749711044092,-151.0,0.00022276,7]
[365500241,1749711044102,-472.21482649,0.00022279,6]
[365500242,1749711044112,-151.0,0.00022291,7]
[365500243,1749711044122,-884.586432,0.00022291,2]
[365500244,1749711044132,-500.80208639,0.00022318,2]
[365500245,1749711044141,-590.0,0.00022398,4]
[365500246,1749711044153,-460.0,0.00022398,4]
[365500247,1749711044163,-151.0,0.000224,9]
[365500248,1749711044174,-472.21482649,0.00022417,7]
[365500249,1749711044184,-1000.0,0.00022426,2]
[365500250,1749711044194,-160.89761,0.00022431,7]
[365500251,1749711044203,-293.312232,0.00022431,7]
[365500252,1749711044213,-293.312232,0.00022431,7]
[365500253,1749711044223,-1000.0,0.00022466,2]
[365500254,1749711044232,-1368.072709,0.00022479,2]
[365500255,1749711044242,-1368.072709,0.00022479,2]
[365500256,1749711044400,-505.3571264,0.00022481,2]
[365500257,1749711044413,-151.0,0.00022489,7]
[365500258,1749711044424,-151.0,0.000225,8]
[365500259,1749711044434,-1235.153068,0.00022536,3]
[365500260,1749711044445,-420.0,0.00022552,2]
[365500261,1749711044455,-472.21482649,0.00022555,7]
[365500262,1749711044465,-203.0,0.00022595,2]
[365500263,1749711044474,-1504.36381947,0.00022628,2]
[365500264,1749711044484,-460.0,0.00022672,4]
[365500265,1749711044494,-472.21482649,0.00022693,7]
[365500266,1749711044503,-151.0,0.000227,6]
[365500267,1749711044513,-203.0,0.00022708,2]
[365500268,1749711044522,-1007.85878957,0.0002278,2]
[365500269,1749711044532,-151.0,0.0002278,7]
[365500270,1749711044541,-1000.0,0.00022821,2]
[365500271,1749711044551,-151.0,0.00022831,7]
[365500272,1749711044560,-472.21482649,0.00022831,8]
[365500273,1749711044570,-800.0,0.00022853,2]
[365500274,1749711044580,-225.60871679,0.00022854,2]
[365500275,1749711044589,-500.0,0.00022899,2]
[365500276,1749711044598,-160.0,0.00022899,2]
[365500277,1749711044608,-151.0,0.000229,5]
[365500278,1749711044618,-5000.0,0.00022935,2]
[365500279,1749711044629,-151.0,0.00022935,7]
[365500280,1749711044639,-331.212048,0.00022935,7]
[365500281,1749711044649,-331.212048,0.00022935,7]
[365500282,1749711044659,-1368.072709,0.00022935,2]
[365500283,1749711044668,-1368.072709,0.00022935,2]
[365500284,1749711044678,-293.312232,0.00022935,7]
[365500285,1749711044688,-293.312232,0.00022935,7]
[365500286,1749711044697,-151.0,0.00022938,7]
[365500287,1749711044707,-165.76,0.00022946,4]
[365500288,1749711044716,-151.0,0.00022965,7]
[365500289,1749711044726,-472.21482649,0.00022969,8]
[365500290,1749711044735,-4315.0783529,0.0002297,2]
[365500291,1749711044745,-500.0,0.00022974,2]
[365500292,1749711044754,-269.56,0.00022976,2]
[365500293,1749711044763,-12873.53964173,0.00023,4]
[365500313,1749711238100,3636.99976413,0.0002,2]
[365500314,1749711238124,1363.00023587,0.0002,2]
[365500319,1749711404211,165.749791,0.00013699,2]
[365500330,1749711593032,5000.0,0.0002,2]
[365500333,1749711609656,5000.0,0.0002,2]
[365500334,1749711625079,167.15,0.00019005,2]
[365500335,1749711625499,208.94,0.00019797,2]
[365500336,1749711625860,5000.0,0.0002,2]
[365500337,1749711641181,868.77604456,0.0002,2]
[365500338,1749711641205,4131.22395544,0.0002,2]
[365500339,1749711648224,230.57658543,0.00019871,2]
[365500340,1749711656807,5000.0,0.0002,2]
[365500341,1749711678628,5000.0,0.0002,2]
[365500342,1749711693932,3411.81553056,0.0002,2]
[365500343,1749711693957,1588.18446944,0.0002,2]
[365500344,1749711700093,185.0,0.00019796,2]
[365500345,1749711709377,5000.0,0.0002,2]
[365500346,1749711724609,5000.0,0.0002,2]
[365500347,1749711740089,5000.0,0.0002,2]
[365500348,1749711755547,1000.43160199,0.0002,2]
[365500349,1749711755580,3999.56839801,0.0002,2]
[365500350,1749711771037,5000.0,0.0002,2]
[365500351,1749711774689,173.23,0.00019886,2]
[365500352,1749711786909,5000.0,0.0002,2]
[365500353,1749711802059,3600.81767342,0.0002,2]
[365500354,1749711802084,1399.18232658,0.0002,2]
[365500355,1749711817504,5000.0,0.0002,2]
[365500356,1749711834060,5000.0,0.0002,2]
[365500357,1749711849341,5000.0,0.0002,2]
[365500358,1749711864730,1374.43374485,0.0002,2]
[365500359,1749711864754,3625.56625515,0.0002,2]
[365500360,1749711880229,5000.0,0.0002,2]
[365500361,1749711896317,5000.0,0.0002,2]
[365500362,1749711913231,4148.04981628,0.0002,2]
[365500363,1749711913257,851.95018372,0.0002,2]
[365500364,1749711929348,5000.0,0.0002,2]
[365500365,1749711944593,5000.0,0.0002,2]
[365500366,1749711947500,163.13211168,0.00019993,2]
[365500367,1749711960361,5000.0,0.0002,2]
[365500368,1749711975821,1758.53377603,0.0002,2]
[365500369,1749711975847,3241.46622397,0.0002,2]
[365500370,1749711979876,182.405092,0.00019432,2]
[365500371,1749711991592,5000.0,0.0002,2]
[365500372,1749711992130,162.21,0.00019787,2]
[365500373,1749712007630,5000.0,0.0002,2]
[365500374,1749712023367,4187.53475546,0.0002,2]
[365500375,1749712023397,812.46524454,0.0002,2]
[365500377,1749712039047,5000.0,0.0002,2]
[365500378,1749712054263,5000.0,0.0002,2]
[365500379,1749712067514,151.88,0.00019787,2]
[365500380,1749712070114,5000.0,0.0002,2]
[365500381,1749712081679,155.0,0.0002,2]
[365500382,1749712084271,-300.0,0.00020092,2]
[365500383,1749712084293,-300.0,0.00020093,2]
[365500384,1749712084315,-300.0,0.00020093,2]
[365500385,1749712084338,-1200.0,0.00020093,2]
[365500386,1749712084362,-300.0,0.00020093,2]
[365500387,1749712084384,-3600.0,0.00020094,2]
[365500388,1749712085505,1654.27082689,0.0002,2]
[365500389,1749712085532,3345.72917311,0.0002,2]
[365500391,1749712097879,813.37420995,0.000189,2]
[365500392,1749712100797,5000.0,0.0002,2]
[365500393,1749712107507,340.146048,0.00019486,2]
[365500394,1749712115964,5000.0,0.0002,2]
[365500395,1749712131310,3274.36664037,0.0002,2]
[365500396,1749712131336,1725.63335963,0.0002,2]
[365500397,1749712147666,5000.0,0.0002,2]
[365500398,1749712162855,5000.0,0.0002,2]
[365500399,1749712178106,5000.0,0.0002,2]
[365500400,1749712194290,1047.9827118,0.0002,2]
[365500401,1749712194315,3952.0172882,0.0002,2]
[365500402,1749712209704,5000.0,0.0002,2]
[365500403,1749712219995,198.78,0.00019007,2]
[365500404,1749712220918,248.48,0.00019799,2]
[365500405,1749712227147,5000.0,0.0002,2]
[365500406,1749712232157,-275.0,0.00020093,2]
[365500407,1749712232166,-840.51770175,0.00020094,2]
[365500416,1749712232479,-5661.74479021,0.00020094,2]
[365500527,1749712238303,-2329.35376864,0.00020094,2]
[365500528,1749712238444,-155.0,0.00020094,2]
[365500529,1749712238455,-200.8,0.00020143,2]
[365500530,1749712238465,-163.08632574,0.00020385,2]
[365500531,1749712238474,-835.4317355,0.00020385,2]
[365500532,1749712238484,-300.0,0.00020472,2]
[365500533,1749712238494,-411.24349685,0.00020473,2]
[365500534,1749712238504,-500.0,0.00020473,2]
[365500535,1749712238514,-500.0,0.00020473,2]
[365500536,1749712238523,-192.06159099,0.00020484,2]
[365500537,1749712238533,-500.0,0.00020484,2]
[365500538,1749712238542,-500.0,0.00020484,2]
[365500539,1749712238552,-501.69772517,0.00020484,2]
[365500540,1749712238567,-500.0,0.00020484,2]
[365500541,1749712238576,-500.0,0.00020484,2]
[365500542,1749712238586,-500.0,0.00020484,2]
[365500543,1749712238595,-500.0,0.00020484,2]
[365500544,1749712238605,-248.24790759,0.00020484,2]
[365500545,1749712238615,-967.72638634,0.00020484,2]
[365500546,1749712238625,-500.0,0.00020484,2]
[365500547,1749712238635,-500.0,0.00020484,2]
[365500548,1749712238645,-331.97919593,0.00020484,2]
[365500549,1749712238655,-450.09045936,0.00020484,2]
[365500550,1749712238665,-500.0,0.00020484,2]
[365500551,1749712238674,-500.0,0.00020484,2]
[365500552,1749712238683,-967.72638634,0.00020484,2]
[365500553,1749712238691,-500.0,0.00020484,2]